Cogmind - Beta 13 @@@ ROGUE MODE // 2024.03.31 @ 23:08:58 Player: BigMaxPorter Result: Destroyed by X-57 Shotgunner with High-powered Shotgun Performance ------------- Evolutions (2) 1000 Regions Visited (5) 1000 Robots Destroyed (32) 160 Value Destroyed (887) 887 Prototype IDs (1) 20 Alien Tech Used (0) 0 Bonus (0) 0 TOTAL SCORE: 3067 Bonus ------- None Cogmind --------- Core Integrity 0/550 Matter 97/300 Energy 100/100 System Corruption 0% Temperature Cool (0) Movement Rolling (100) Location -8/Materials Parts ------- > --- POWER (2) -------- (None) > --- PROPULSION (4) --- Compact Wheel > --- UTILITY (2) ------ (None) > --- WEAPON (3) ------- Particle Gun > --- INVENTORY (5) ---- (None) Peak State ------------ > --- POWER ------------ Light Nuclear Core > --- PROPULSION ------- Aluminum Leg Aluminum Leg Aluminum Leg Aluminum Leg > --- UTILITY ---------- Small Storage Unit Field Recycling Unit > --- WEAPON ----------- Autogun Mini Grenade Launcher Mini Grenade Launcher > --- INVENTORY -------- Ion Engine Light Ion Engine Improved Assault Rifle Light Cannon Light Cannon Improved Light Cannon [Rating: 16] Favorites ----------- Power Light Nuclear Core Engine Light Ion Engine Power Core Light Nuclear Core Propulsion Aluminum Leg Treads Light Treads Leg Aluminum Leg Wheel Compact Wheel Utility Small Storage Unit Device Field Recycling Unit Storage Small Storage Unit Protection Backup Plating I Weapon Medium Laser Energy Gun Medium Laser Ballistic Gun Improved Assault Rifle Ballistic Cannon Light Cannon Launcher Mini Grenade Launcher Build | -11 -10 -10 -9 -9 -8 ------- Run | Yrd Mat Min Mat Sto Mat Slots Evolved 4 | . . . 2 . 2 Power 1 | . . . 1 . . Propulsion 2 | . . . . . 2 Utility . | . . . . . . Weapon 1 | . . . 1 . . Parts Attached 41 | 6 2 3 . 14 16 Power 6 | 1 . 2 . . 3 Engine 4 | 1 . 1 . . 2 Core 2 | . . 1 . . 1 Reactor . | . . . . . . Propulsion 10 | 2 . . . 5 3 Treads 2 | 2 . . . . . Leg 7 | . . . . 5 2 Wheel 1 | . . . . . 1 Hover . | . . . . . . Flight . | . . . . . . Utility 2 | 1 . . . 1 . Device 1 | . . . . 1 . Storage 1 | 1 . . . . . Processor . | . . . . . . Hackware . | . . . . . . Protection . | . . . . . . Artifact . | . . . . . . Weapon 23 | 2 2 1 . 8 10 Energy Gun 4 | . 2 1 . . 1 Energy Cannon . | . . . . . . Ballistic Gun 6 | 2 . . . 3 1 Ballistic Cannon 8 | . . . . 4 4 Launcher 5 | . . . . 1 4 Special Weapon . | . . . . . . Impact Weapon . | . . . . . . Slashing Weapon . | . . . . . . Piercing Weapon . | . . . . . . Special Melee Weapon . | . . . . . . Unidentified Prototypes 1 | . . . . 1 . Parts Lost 17 | . . . . 4 13 Power 3 | . . . . 1 2 Propulsion 5 | . . . . 1 4 Utility 3 | . . . . 1 2 Weapon 6 | . . . . 1 5 Highest Loss Streak 13 | . . . . 2 13 To Critical Strikes . | . . . . . . Average Slot Usage (%) 73 | . 95 100 77 66 62 Engine 2 | . 14 8 . . . Core 5 | . . 5 11 7 2 Treads 8 | . 28 28 22 2 . Leg 11 | . . . . 12 20 Device 1 | . . . . . 7 Storage 11 | . 14 14 11 11 8 Protection 5 | . 9 14 11 3 . Energy Gun 10 | . 6 28 22 7 . Ballistic Gun 8 | . 21 . . 10 7 Ballistic Cannon 7 | . . . . 11 7 Launcher 1 | . . . . . 6 Naked Turns . | . . . . . . Heaviest Build 27 | 10 13 15 15 23 27 Greatest Support 40 | 40 40 40 40 40 40 Greatest Overweight (x) 4 | . . . . 4 3 Average Overweight (x) . | . . . . . . Largest Inventory Capacity 8 | 8 8 8 8 8 8 Average Capacity 7 | 6 8 8 8 8 7 Most Carried 6 | 1 1 3 3 6 6 Average Carried 3 | . 1 1 3 4 5 Final Capacity 8 | 8 8 8 8 8 5 Final Carried 6 | 1 1 3 3 6 . Class Distribution -------------------- 51% | Mutant 30% | Gunner 13% | Tank 3% | Scavenger-Gunner Dominant Class ---------------- Mutant | -10/Materials Mutant | -10/Mines Mutant | -9/Materials Gunner | -9/Storage Gunner | -8/Materials Resources | -11 -10 -10 -9 -9 -8 ----------- Run | Yrd Mat Min Mat Sto Mat Matter Collected 792 | 249 . 53 . 288 202 Remotely . | . . . . . . Salvage Created 1139 | . . 137 . 707 295 Parts 60 | . . 4 . 38 18 Haulers Intercepted 1 | . . . . . 1 Recyclers Shooed 8 | . . 2 . 3 3 Parts Field Recycled . | . . . . . . Retrieved Matter . | . . . . . . Parts Self-Destructed . | . . . . . . Prevented . | . . . . . . Kills | -11 -10 -10 -9 -9 -8 ------- Run | Yrd Mat Min Mat Sto Mat Combat Hostiles Destroyed 22 | . . 4 . 15 3 Guns 14 | . . 4 . 8 2 Cannons 4 | . . . . 4 . AOE 3 | . . . . 2 1 Classes Destroyed 7 | . . 2 . 3 2 Worker 2 | . . . . . 2 Hauler 1 | . . . . . 1 Recycler 4 | . . . . 3 1 Watcher 3 | . . . . 2 1 Swarmer 5 | . . 2 . 3 . Grunt 14 | . . 2 . 9 3 Sentry 3 | . . . . 3 . Best Kill Streak 6 | . . 2 . 6 3 Combat Bots Only 6 | . . 2 . 6 3 Max Kills in Single Turn 3 | . . 1 . 3 2 Gunslinging . | . . . . . . Exploded 1 | . . . . 1 1 Melee . | . . . . . . Uniques/NPCs Destroyed . | . . . . . . Combat | -11 -10 -10 -9 -9 -8 -------- Run | Yrd Mat Min Mat Sto Mat Hostile Shots Fired 206 | . . 26 . 71 109 Missed 75 | . . 8 . 23 44 Damage Taken 2248 | . . 217 . 681 1350 Core 688 | . . 39 . 90 559 Absorbed by Shields . | . . . . . . Regen/Repaired (Parts) 51 | . . . . 51 . Core Remaining (%) 87 | 100 . 84 . 77 . Volleys Fired 81 | . . 16 . 36 29 Largest 3 | . . 2 . 3 3 Hottest 135 | . . 100 . 135 93 Shots Fired 173 | . . 26 . 98 49 Gun 118 | . . 26 . 66 26 Cannon 43 | . . . . 30 13 Launcher 12 | . . . . 2 10 Special . | . . . . . . Kinetic 95 | . . . . 57 38 Thermal 66 | . . 26 . 39 1 Explosive 12 | . . . . 2 10 Electromagnetic . | . . . . . . Robot Hit Streak 12 | . . 9 . 11 12 Robot Miss Streak 7 | . . 3 . 4 7 Penetration Max . | . . . . . . Secondary Targets . | . . . . . . Shots Hit Robots 100 | . . 17 . 59 24 Core Hits 60 | . . 8 . 30 22 Critical Kills 1 | . . . . . 1 Critical Parts Destroyed . | . . . . . . Critical Strikes 9 | . . 2 . 6 1 Burn 5 | . . 2 . 3 . Destroy 2 | . . . . 1 1 Blast 2 | . . . . 2 . Melee Attacks . | . . . . . . Impact . | . . . . . . Slashing . | . . . . . . Piercing . | . . . . . . Sneak Attacks . | . . . . . . Combat Hostiles . | . . . . . . Follow-up Attacks . | . . . . . . Damage Inflicted 2388 | . . 221 . 1298 869 Guns 1010 | . . 211 . 565 234 Cannons 461 | . . . . 349 112 Explosions 905 | . . . . 384 521 Melee . | . . . . . . Ramming 12 | . . 10 . . 2 Kinetic 897 | . . . . 565 332 Thermal 574 | . . 211 . 349 14 Explosive 905 | . . . . 384 521 Electromagnetic . | . . . . . . Impact . | . . . . . . Slashing . | . . . . . . Piercing . | . . . . . . Highest Corruption . | . . . . . . Average Corruption . | . . . . . . Corruption Purged . | . . . . . . Corruption Blocked . | . . . . . . Overload Shots . | . . . . . . Overflow Damage 108 | . . . . 107 1 Projectiles . | . . . . . . Explosions 108 | . . . . 107 1 Melee . | . . . . . . Knockbacks 2 | . . . . 1 1 Impact . | . . . . . . Kinetic 2 | . . . . 1 1 Secondary . | . . . . . . Self-Inflicted Damage 70 | . . . . 69 1 Shots 1 | . . . . 1 . Rammed 4 | . . 3 . . 1 Targets Rammed 4 | . . 3 . . 1 Kicked . | . . . . . . Crushed . | . . . . . . Highest Temperature 410 | . . 381 . 410 52 Average Temperature 145 | . . 180 . 152 14 Received Heat Transfer 573 | . . 117 . 303 153 Effects 7 | . . 3 . 4 . Shutdowns 4 | . . 1 . 3 . Energy Bleed 1 | . . 1 . . . Interference 1 | . . 1 . . . Short Circuit 1 | . . . . 1 . Siege Activations . | . . . . . . Robots Corrupted . | . . . . . . Combat Hostiles . | . . . . . . Parts Fried . | . . . . . . Impact Corruptions . | . . . . . . Robots Melted 1 | . . . . 1 . Combat Hostiles 1 | . . . . 1 . Parts Melted 11 | . . 3 . 8 . Heat Transferred 2072 | . . 777 . 1258 37 Parts Sabotaged . | . . . . . . Parts Stolen . | . . . . . . Parts Stripped . | . . . . . . Power Chain Reactions . | . . . . . . Alert | -11 -10 -10 -9 -9 -8 ------- Run | Yrd Mat Min Mat Sto Mat Peak Influence 376 | . 6 101 39 376 258 Initial 102 | . . 1 39 16 102 Average 125 | . 3 58 39 154 172 Maximum Alert Level 1 | . . . . 1 1 Low Security (%) 75 | 100 100 100 100 71 50 Level 1 24 | . . . . 28 49 Level 2 . | . . . . . . Level 3 . | . . . . . . Level 4 . | . . . . . . Level 5 . | . . . . . . High Security . | . . . . . . Max Security . | . . . . . . Squads Dispatched 5 | . . . . 3 2 Investigation 2 | . . . . 2 . Extermination . | . . . . . . Reinforcement 3 | . . . . 1 2 Assault . | . . . . . . Garrison . | . . . . . . Intercept . | . . . . . . Searches Triggered . | . . . . . . Construction Impeded . | . . . . . . Haulers Reinforced . | . . . . . . Active Scanning Responses . | . . . . . . Cargo Convoy Interrupts . | . . . . . . Stealth | -11 -10 -10 -9 -9 -8 --------- Run | Yrd Mat Min Mat Sto Mat Distress Signals 5 | . . . . 2 3 Communications Jammed . | . . . . . . Distress Signals . | . . . . . . Times Spotted 42 | . . 5 . 21 16 Peak Tracking Total 9 | . . 3 . 5 9 Tactical Retreats 5 | . . . . 3 2 Traps | -11 -10 -10 -9 -9 -8 ------- Run | Yrd Mat Min Mat Sto Mat Traps Triggered 3 | . . . . 2 1 Indirectly . | . . . . . . Trap Hack Attempts . | . . . . . . Triggered . | . . . . . . Disarmed . | . . . . . . Reprogrammed . | . . . . . . Reused . | . . . . . . Traps Extracted . | . . . . . . Installed . | . . . . . . Triggered . | . . . . . . Machines | -11 -10 -10 -9 -9 -8 ---------- Run | Yrd Mat Min Mat Sto Mat Machines Disabled 6 | . . . . 3 3 Max in Single Turn 3 | . . . . 3 1 Machines Repaired . | . . . . . . Machines Dismantled . | . . . . . . Machines Sabotaged . | . . . . . . Overloaded Fab Kills . | . . . . . . Hacking | -11 -10 -10 -9 -9 -8 --------- Run | Yrd Mat Min Mat Sto Mat Machines Accessed 5 | . 1 . . 4 . Terminals 3 | . . . . 3 . Fabricators . | . . . . . . Repair Stations 2 | . 1 . . 1 . Recycling Units . | . . . . . . Scanalyzers . | . . . . . . Garrison Access . | . . . . . . Total Hacks 20 | . 1 . . 19 . Successful 12 | . 1 . . 11 . Failed 8 | . . . . 8 . Catastrophic 2 | . . . . 2 . Database Lockouts . | . . . . . . Manual . | . . . . . . Terminals 14 | . . . . 14 . Fabricators . | . . . . . . Repair Stations 6 | . 1 . . 5 . Recycling Units . | . . . . . . Scanalyzers . | . . . . . . Garrison Access . | . . . . . . Terminal Hacks 8 | . . . . 8 . Record 4 | . . . . 4 . Part Schematic 1 | . . . . 1 . Open Door 1 | . . . . 1 . Dispatch Records 1 | . . . . 1 . Transport Status 1 | . . . . 1 . Fabricator Hacks . | . . . . . . Repair Station Hacks 4 | . 1 . . 3 . Scan Component 2 | . . . . 2 . Repair 1 | . . . . 1 . Refit 1 | . 1 . . . . Recycling Unit Hacks . | . . . . . . Scanalyzer . | . . . . . . Garrison Access Hacks . | . . . . . . Unauthorized Hacks . | . . . . . . Terminals . | . . . . . . Fabricators . | . . . . . . Repair Stations . | . . . . . . Recycling Units . | . . . . . . Scanalyzers . | . . . . . . Garrison Access . | . . . . . . Data Cores Recovered . | . . . . . . Used . | . . . . . . Hacking Detections 3 | . . . . 3 . Full Trace Events 3 | . . . . 3 . Feedback Events . | . . . . . . Feedback Blocked . | . . . . . . Robot Schematics Acquired . | . . . . . . Robots Built . | . . . . . . Authchips . | . . . . . . Time . | . . . . . . Total Robot Build Rating . | . . . . . . Part Schematics Acquired 1 | . . . . 1 . Parts Built . | . . . . . . Authchips . | . . . . . . Time . | . . . . . . Total Part Build Rating . | . . . . . . Parts Repaired 1 | . . . . 1 . Time 26 | . . . . 26 . Parts Recycled . | . . . . . . Recycled Matter . | . . . . . . Retrieved Matter . | . . . . . . Retrieved Components . | . . . . . . Parts Scanalyzed . | . . . . . . Part Schematics Acquired . | . . . . . . Parts Damaged . | . . . . . . Bothacking | -11 -10 -10 -9 -9 -8 ------------ Run | Yrd Mat Min Mat Sto Mat Used RIF Installer . | . . . . . . Robots Hacked . | . . . . . . Non-combat . | . . . . . . Combat . | . . . . . . Robot Hacks Applied . | . . . . . . Relay Couplers Released . | . . . . . . Fabnet Peak Effective % . | . . . . . . Robots Rewired . | . . . . . . Allies Hacked . | . . . . . . Hacks Repelled . | . . . . . . Allies | -11 -10 -10 -9 -9 -8 -------- Run | Yrd Mat Min Mat Sto Mat Total Allies . | . . . . . . Largest Group . | . . . . . . Highest-Rated Group . | . . . . . . Highest-Rated Ally . | . . . . . . Total Orders . | . . . . . . Ally Attacks . | . . . . . . Total Damage . | . . . . . . Kills . | . . . . . . Allies Corrupted . | . . . . . . Allies Melted . | . . . . . . Intel | -11 -10 -10 -9 -9 -8 ------- Run | Yrd Mat Min Mat Sto Mat Robot Analysis Total . | . . . . . . Derelict Logs Recovered 2 | . . 2 . . . Drone Launches . | . . . . . . Drone Recoveries . | . . . . . . Exploration | -11 -10 -10 -9 -9 -8 ------------- Run | Yrd Mat Min Mat Sto Mat Turns Passed 1930 | 93 88 343 20 1019 367 Spaces Moved 1005 | 56 53 180 13 508 195 Core 35 | 5 . . . 2 28 Treads 362 | 51 53 180 13 65 . Legs 598 | . . . . 441 157 Wheels 10 | . . . . . 10 Hover . | . . . . . . Flight . | . . . . . . Fastest Speed 50 | 50 160 160 160 120 50 Average Speed 158 | 150 160 160 160 164 140 Slowest Speed 250 | 160 160 160 160 250 200 Overloaded Moves . | . . . . . . Propulsion Burnouts . | . . . . . . Robots Hopped . | . . . . . . Cave-ins Triggered . | . . . . . . Exploration Rate (%) 20 | 4 12 42 2 45 15 Regions Visited 5 Branch Regions 2 Pre-discovered Areas 1 | . . 1 . . . Known Exits Taken 1 | . . . 1 . . Unknown Exits Taken 4 | 1 1 1 . 1 . Scrap Searched 1 | . . 1 . . . Spaces Dug . | . . . . . . Terrain Destroyed 72 | . . . . 30 42 Melee . | . . . . . . Projectile 1 | . . . . 1 . AOE 71 | . . . . 29 42 Terrain Rammed . | . . . . . . Walls Destroyed . | . . . . . . Machines Disabled . | . . . . . . Actions | -11 -10 -10 -9 -9 -8 --------- Run | Yrd Mat Min Mat Sto Mat Total 1190 | 62 56 207 12 609 244 Wait 31 | . . 1 . 27 3 Move 1000 | 55 52 179 12 507 195 Hop . | . . . . . . Pick Up 14 | 1 . 3 . 10 . Fast Attach 17 | 6 2 1 . 3 5 Attach 11 | . . . . 5 6 Detach . | . . . . . . Swap 13 | . . 2 . 6 5 Drop 9 | . 2 2 . 5 . Fire 81 | . . 16 . 36 29 Melee . | . . . . . . Ram 1 | . . . . . 1 Kick . | . . . . . . Crush 3 | . . 3 . . . Escape Stasis 10 | . . . . 10 . Rewire . | . . . . . . Trap . | . . . . . . Miscellaneous . | . . . . . . Route ------- -11/Scrapyard -10/Materials -10/Mines -9/Materials (discovered 2 exits: *Sto x2) -9/Storage -8/Materials History --------- Turn | Location | Event 5 | -11/Scrapyard | Discovered new exit (range 15) 94 | -11/Scrapyard | Entered Materials 144 | -10/Materials | Discovered new exit (range 4) 182 | -10/Materials | Entered Mines 324 | -10/Mines | Build established: Mutant 405 | -10/Mines | Learned location of Storage (-9) 480 | -10/Mines | Discovered new exit (range 6) 525 | -10/Mines | Entered Materials 525 | -9/Materials | Evolved 2 slots: Power x1, Weapon x1 525 | -9/Materials | Discovered new exit (range 10) 526 | -9/Materials | Identified exit to Storage 545 | -9/Materials | Entered Storage 1359 | -9/Storage | Repaired Aluminum Leg 1535 | -9/Storage | Discovered new exit (range 16) 1541 | -9/Storage | Build established: Gunner 1564 | -9/Storage | Entered Materials 1564 | -8/Materials | Evolved 2 slots: Propulsion x2 1892 | -8/Materials | Core integrity fell below 50% 1904 | -8/Materials | Core integrity fell below 20% 1931 | -8/Materials | Destroyed by X-57 Shotgunner with High-powered Shotgun Last Messages --------------- U-05 Engineer lays Concrete. U-05 Engineer builds a Wall. Knocked back. R-06 Scavenger destroyed. U-05 Engineer builds a Wall. Imp. Light Cannon blasted off. Knocked back. Triggered Blade Trap. Massive razor-sharp blades shoot up from within the floor. Ion Engine severed. U-05 Engineer lays Concrete. Critical hit (Burn: +37). U-05 Engineer builds a Wall. Acquired 1 matter. Sml. Storage Unit destroyed. Acquired Com. Wheel. Acquired Particle Gun. Slug penetrates Wall. Slammed into U-05 Engineer. Map ----- +----------------------------------------------------+ | ??????????????????????????????????????????? | | ??????????????????????????????????????????? | | ??????????????????????????????????????????? | | ??????????????????? ????????????????????? | | ??????????????????# ????????????????????? | | ??????????????????# ????????????????????? | | ??????????????????# "???????????????????? | | ??????????????????# "?? ???????????????? | | ??????????????????# """ ????????+####??? | | ??????????????????# """ [???????? ? | | ??????????????????# #?????? ?? | | ??????????????????# #?????? ?? | | ??????????????????# """ #?????? ""?? | | ??????????????????# """ #?????? """ | | ??????????####????# """ #?????? """ | | ?????????## ???# #?????? | | ?????????# ?## ##????# | | ??????????# # #####" """ | | ??????????????# "" [ """ | | ??????????????## # """ """ | | ?????????????????### """ | | ???????????????????# "" "" % | | ???????????????????# """ """ | | ???????????##??????# """ """ | | ??################## " " """ | | ??# ; x @ u | | ??# """ # x########## | | ??# """ # ########?##+####" """ | | ??# !! """ # # #????????# """ | | ??# !! # " #????????# %"" | | ??# """ # # #????????# %% | | ??# """ + #! #????????# % | | ??# """ # # #????????# | | ??# # # #????????# =%" | | ??########## ###/############# = | | ???????# *] % ] | | ???????# ^ % ==! | | ???????# ^ H =%!! ] | | ???????##################+############# | | ????????????????????????????????????? !%* | | ????????????????????????????????????? | | ????????????????????????????????????? | | ????????????????????????????????????? | | ????????????????????????????????????? | | ?????????????????????????????????????### | | ????????????????????????????????????????# | | ????????????????????????????????????????? | | ????????????????????????????????????????? | | ????????????????????????????????????????? | | ?????????????????????????????????????????? | +----------------------------------------------------+ Best States ------------- Heat Dissipation 31 Energy Generation 14 Energy Capacity 160 Matter Stores 300 Matter Capacity 300 Sight Range 16 Terrain Scan Density 10 Armor Coverage 80 Evasion (%) 55 Recoil Reduction 2 Item Schematics ----------------- Imp. Medium Armor Plating | -9/Storage | Hacked Robot Schematics ------------------ None Fabricated ------------ Nothing Alien Tech Used ----------------- None Achievements -------------- Hey, That's Mine! Part-time Mechanic Challenges ------------ None Game ------ Seed BoreAssemblyMace Manual? 0 Play Time 00:19:53 Cumulative 1.3 hours Start 2024.03.31 @ 22:50:42 End 2024.03.31 @ 23:08:58 Sessions 2 Manual Loads 0 Difficulty Rogue Special Mode None Game No. 4 Rogue 4 Adventurer 0 Explorer 0 Win Type - Total 0 Types 0/0/0/0/0/0/0/0/0 Lore% 1 Gallery% 7 Achievement% 7 Wizard Run 0 Options --------- Layout 1 ASCII 0 Keyboard 0 Movement Mouse Keybinds 0 Fullscreen 1 Font 24/Smallcaps Map View 50x35 Zoom Use 0% Tactical HUD 0 Map Filters NONE Filters NONE Steam 1 RUN: 001fb8bf-05b7-4275-bb2f-a5837a42842e